fUSD/lending_fUSD_20260616
["ID","MTS","AMOUNT","RATE_DAILY","PERIOD"]
[425186527,1781563920000,-1011.88270989,0.00035202,2]
[425186522,1781563920000,-563.0,0.00035147,10]
[425186530,1781563920000,-150.0,0.00035285,2]
[425186528,1781563920000,-9594.0792,0.00035266,2]
[425186531,1781563920000,-150.0,0.00035285,2]
[425186532,1781563920000,-150.0,0.00035285,2]
[425186529,1781563920000,-228.525894,0.00035279,120]
[425186535,1781563920000,-284.9,0.00035303,30]
[425186533,1781563920000,-1197.56,0.000353,120]
[425186508,1781563920000,-259.26,0.0003503,30]
[425186524,1781563920000,-299.39,0.000352,15]
[425186506,1781563920000,-2503.1633564,0.00035,30]
[425186478,1781563920000,-44571.13892796,0.00035,7]
[425186501,1781563920000,-20632.49411397,0.00035,7]
[425186542,1781563920000,-480.5189,0.00035389,2]
[425186484,1781563920000,-277.37556655,0.00035,7]
[425186483,1781563920000,-10062.95336297,0.00035,7]
[425186481,1781563920000,-78649.54171106,0.00035,7]
[425186479,1781563920000,-800.0,0.00035,7]
[425186480,1781563920000,-78649.54171106,0.00035,7]
[425186482,1781563920000,-10062.95336297,0.00035,7]
[425186485,1781563920000,-277.37556655,0.00035,7]
[425186487,1781563920000,-526.0,0.00035,5]
[425186486,1781563920000,-340000.0,0.00035,4]
[425186488,1781563920000,-6306.86363647,0.00035,30]
[425186493,1781563920000,-224.25589988,0.00035,30]
[425186489,1781563920000,-5285.59749272,0.00035,7]
[425186491,1781563920000,-250.0,0.00035,120]
[425186497,1781563920000,-800.0,0.00035,7]
[425186496,1781563920000,-20632.49411396,0.00035,7]
[425186492,1781563920000,-2659.76069626,0.00035,120]
[425186495,1781563920000,-20632.49411396,0.00035,7]
[425186490,1781563920000,-1928.41885682,0.00035,7]
[425186494,1781563920000,-800.0,0.00035,7]
[425186509,1781563920000,-2214.0,0.00035085,30]
[425186499,1781563920000,-2172.91,0.00035,30]
[425186500,1781563920000,-708.37830297,0.00035,2]
[425186503,1781563920000,-308.57594522,0.00035,60]
[425186504,1781563920000,-200.0,0.00035,120]
[425186507,1781563920000,-9594.0792,0.00035019,2]
[425186505,1781563920000,-1136.90007376,0.00035,7]
[425186498,1781563920000,-800.0,0.00035,7]
[425186544,1781563920000,-203.61637801,0.000354,120]
[425186502,1781563920000,-20632.49411397,0.00035,7]
[425186540,1781563920000,-310.13,0.00035303,30]
[425186582,1781563920000,-2104.0,0.00035589,120]
[425186571,1781563920000,-1548.5,0.00035589,120]
[425186572,1781563920000,-1548.5,0.00035589,120]
[425186581,1781563920000,-2463.0,0.00035589,120]
[425186574,1781563920000,-1455.0,0.00035589,120]
[425186579,1781563920000,-1308.0,0.00035589,120]
[425186580,1781563920000,-1308.0,0.00035589,120]
[425186577,1781563920000,-2431.5,0.00035589,120]
[425186578,1781563920000,-2431.5,0.00035589,120]
[425186576,1781563920000,-2402.5,0.00035589,120]
[425186575,1781563920000,-2402.5,0.00035589,120]
[425186570,1781563920000,-12671.0,0.0003558,10]
[425186584,1781563920000,-2324.5,0.00035589,120]
[425186585,1781563920000,-1815.5,0.00035589,120]
[425186587,1781563920000,-575.61055574,0.00035589,120]
[425186583,1781563920000,-2324.5,0.00035589,120]
[425186588,1781563920000,-2097.0,0.00035589,120]
[425186593,1781563920000,-4524.13582145,0.0003561,2]
[425186589,1781563920000,-169.5,0.00035589,120]
[425186586,1781563920000,-1815.5,0.00035589,120]
[425186591,1781563920000,-2327.0,0.00035589,120]
[425186592,1781563920000,-171408.65714048,0.0003561,2]
[425186595,1781563920000,-600.0,0.00035616,120]
[425186594,1781563920000,-1523.5567183,0.00035616,60]
[425186596,1781563920000,-2000.0,0.00035616,30]
[425186597,1781563920000,-1000.0,0.00035616,120]
[425186543,1781563920000,-9594.0792,0.00035389,2]
[425186573,1781563920000,-1455.0,0.00035589,120]
[425186566,1781563920000,-3558.0,0.00035566,2]
[425186590,1781563920000,-2327.0,0.00035589,120]
[425186568,1781563920000,-419.0,0.00035566,2]
[425186565,1781563920000,-392.75145617,0.00035562,40]
[425186539,1781563920000,-1616.44,0.00035303,30]
[425186545,1781563920000,-200.0,0.000354,14]
[425186541,1781563920000,-1677.86,0.00035328,5]
[425186537,1781563920000,-543.91,0.00035303,30]
[425186538,1781563920000,-310.79,0.00035303,30]
[425186550,1781563920000,-5608.95720396,0.00035455,120]
[425186555,1781563920000,-636.0,0.000355,120]
[425186547,1781563920000,-154.16832564,0.00035438,120]
[425186549,1781563920000,-209.76672017,0.00035448,14]
[425186554,1781563920000,-1958.1,0.00035482,14]
[425186548,1781563920000,-939.05241114,0.00035438,120]
[425186557,1781563920000,-800.0,0.000355,7]
[425186534,1781563920000,-840.64,0.000353,120]
[425186551,1781563920000,-100000.0,0.00035455,7]
[425186564,1781563920000,-1001.0,0.00035562,7]
[425186546,1781563920000,-158.24410207,0.00035429,2]
[425186560,1781563920000,-800.0,0.000355,7]
[425186559,1781563920000,-800.0,0.000355,7]
[425186562,1781563920000,-215.49631673,0.000355,120]
[425186567,1781563920000,-934.0,0.00035566,2]
[425186561,1781563920000,-208.24629698,0.000355,120]
[425186563,1781563920000,-9594.0792,0.00035513,2]
[425186558,1781563920000,-800.0,0.000355,7]
[425186556,1781563920000,-800.0,0.000355,7]
[425186553,1781563920000,-1000.0,0.00035479,2]
[425186552,1781563920000,-1000.0,0.00035479,2]
[425186569,1781563920000,-226.164348,0.00035579,120]
[425186626,1781563921000,-460.448894,0.00035616,30]
[425186623,1781563921000,-460.448894,0.00035616,30]
[425186620,1781563921000,-558.44,0.00035616,2]
[425186625,1781563921000,-460.448894,0.00035616,30]
[425186622,1781563921000,-460.448894,0.00035616,30]
[425186619,1781563921000,-558.05732783,0.00035616,7]
[425186624,1781563921000,-460.448894,0.00035616,30]
[425186621,1781563921000,-460.448894,0.00035616,30]
[425186628,1781563921000,-460.448894,0.00035616,30]
[425186631,1781563921000,-460.448894,0.00035616,30]
[425186630,1781563921000,-460.448894,0.00035616,30]
[425186633,1781563921000,-460.448894,0.00035616,30]
[425186636,1781563921000,-460.448894,0.00035616,30]
[425186629,1781563921000,-460.448894,0.00035616,30]
[425186634,1781563921000,-460.448894,0.00035616,30]
[425186637,1781563921000,-460.448894,0.00035616,30]
[425186632,1781563921000,-460.448894,0.00035616,30]
[425186627,1781563921000,-460.448894,0.00035616,30]
[425186615,1781563921000,-500.0,0.00035616,7]
[425186602,1781563921000,-500.0,0.00035616,7]
[425186616,1781563921000,-635.46709826,0.00035616,7]
[425186635,1781563921000,-460.448894,0.00035616,30]
[425186605,1781563921000,-500.0,0.00035616,7]
[425186603,1781563921000,-500.0,0.00035616,7]
[425186598,1781563921000,-794.33388694,0.00035616,30]
[425186604,1781563921000,-500.0,0.00035616,7]
[425186599,1781563921000,-800.0,0.00035616,120]
[425186601,1781563921000,-500.0,0.00035616,7]
[425186600,1781563921000,-500.0,0.00035616,7]
[425186617,1781563921000,-500.0,0.00035616,7]
[425186606,1781563921000,-500.0,0.00035616,7]
[425186614,1781563921000,-500.0,0.00035616,7]
[425186609,1781563921000,-500.0,0.00035616,7]
[425186607,1781563921000,-500.0,0.00035616,7]
[425186611,1781563921000,-500.0,0.00035616,7]
[425186610,1781563921000,-500.0,0.00035616,7]
[425186608,1781563921000,-500.0,0.00035616,7]
[425186613,1781563921000,-500.0,0.00035616,7]
[425186618,1781563921000,-500.0,0.00035616,7]
[425186612,1781563921000,-500.0,0.00035616,7]
[425186638,1781563921000,-460.448894,0.00035616,30]
[425186642,1781563921000,-5000.0,0.00035619,2]
[425186640,1781563921000,-460.448901,0.00035616,30]
[425186662,1781563921000,-154.357604,0.0003576,7]
[425186663,1781563921000,-1000.0,0.0003578,120]
[425186664,1781563921000,-490.11382342,0.0003578,31]
[425186670,1781563921000,-9594.0792,0.00035883,2]
[425186665,1781563921000,-250.0,0.00035789,7]
[425186666,1781563921000,-1000.0,0.00035808,120]
[425186668,1781563921000,-1000.0,0.00035863,120]
[425186669,1781563921000,-298.11389,0.00035879,120]
[425186660,1781563921000,-169.75,0.00035754,5]
[425186673,1781563921000,-278.0,0.000359,120]
[425186676,1781563921000,-1000.0,0.00035945,120]
[425186674,1781563921000,-250.0,0.00035911,39]
[425186677,1781563921000,-1000.0,0.00035951,2]
[425186680,1781563921000,-150.0,0.00035951,2]
[425186679,1781563921000,-1000.0,0.00035951,2]
[425186681,1781563921000,-150.0,0.00035951,2]
[425186678,1781563921000,-1000.0,0.00035951,2]
[425186641,1781563921000,-5010.54194764,0.00035619,2]
[425186675,1781563921000,-1000.0,0.00035917,120]
[425186672,1781563921000,-150.0,0.00035899,2]
[425186667,1781563921000,-1000.0,0.00035835,120]
[425186661,1781563921000,-9594.0792,0.00035759,2]
[425186639,1781563921000,-460.448894,0.00035616,30]
[425186671,1781563921000,-1000.0,0.0003589,120]
[425186644,1781563921000,-5000.0,0.00035619,2]
[425186648,1781563921000,-9594.0792,0.00035636,2]
[425186645,1781563921000,-5000.0,0.00035619,2]
[425186643,1781563921000,-5000.0,0.00035619,2]
[425186647,1781563921000,-314.0,0.00035627,120]
[425186650,1781563921000,-281.71811847,0.00035639,30]
[425186649,1781563921000,-1800.0,0.00035638,30]
[425186646,1781563921000,-600.0,0.00035621,120]
[425186654,1781563921000,-563.0,0.00035681,11]
[425186652,1781563921000,-1000.0,0.00035671,120]
[425186653,1781563921000,-2075.7735,0.00035677,2]
[425186656,1781563921000,-158.24410207,0.00035703,2]
[425186658,1781563921000,-714.07,0.00035752,7]
[425186655,1781563921000,-1000.0,0.00035698,120]
[425186659,1781563921000,-1000.0,0.00035753,120]
[425186651,1781563921000,-1000.0,0.00035643,120]
[425186657,1781563921000,-1000.0,0.00035726,120]
[425186708,1781563922000,-1000.0,0.00036054,120]
[425186715,1781563922000,-25000.0,0.0003611,10]
[425186716,1781563922000,-1093.22073678,0.00036123,120]
[425186709,1781563922000,-1000.0,0.00036082,120]
[425186701,1781563922000,-706.0,0.00036,30]
[425186714,1781563922000,-1000.0,0.00036109,120]
[425186707,1781563922000,-1000.0,0.00036027,120]
[425186710,1781563922000,-990.10335082,0.000361,120]
[425186712,1781563922000,-2972.07382577,0.000361,30]
[425186713,1781563922000,-2972.07382577,0.000361,30]
[425186724,1781563922000,-2501.1,0.00036177,10]
[425186711,1781563922000,-2972.07382578,0.000361,30]
[425186718,1781563922000,-1000.0,0.00036136,120]
[425186719,1781563922000,-1421.2,0.00036153,30]
[425186720,1781563922000,-1000.0,0.00036164,120]
[425186721,1781563922000,-1684.0,0.00036164,2]
[425186722,1781563922000,-1158.17,0.00036167,10]
[425186723,1781563922000,-203.65936251,0.00036173,2]
[425186725,1781563922000,-318.069411,0.00036179,120]
[425186700,1781563922000,-800.0,0.00036,7]
[425186717,1781563922000,-9594.0792,0.00036129,2]
[425186699,1781563922000,-800.0,0.00036,7]
[425186685,1781563922000,-500.0,0.00035951,2]
[425186706,1781563922000,-150.0,0.0003602,2]
[425186682,1781563922000,-150.0,0.00035951,2]
[425186683,1781563922000,-150.0,0.00035951,2]
[425186684,1781563922000,-500.0,0.00035951,2]
[425186686,1781563922000,-1000.0,0.00035972,120]
[425186689,1781563922000,-700.0,0.00036,30]
[425186687,1781563922000,-158.24410207,0.00035977,2]
[425186688,1781563922000,-569.20169565,0.00036,7]
[425186693,1781563922000,-170.59888483,0.00036,7]
[425186691,1781563922000,-800.0,0.00036,7]
[425186704,1781563922000,-9594.0792,0.00036006,2]
[425186696,1781563922000,-1578.431,0.00036,30]
[425186692,1781563922000,-800.0,0.00036,7]
[425186695,1781563922000,-2000.0,0.00036,30]
[425186694,1781563922000,-2000.0,0.00036,20]
[425186697,1781563922000,-800.0,0.00036,7]
[425186728,1781563922000,-5222.93679359,0.000362,30]
[425186698,1781563922000,-1000.0,0.00036,120]
[425186702,1781563922000,-168.20893723,0.00036,120]
[425186703,1781563922000,-1136.0,0.00036,7]
[425186705,1781563922000,-150.0,0.0003602,2]
[425186690,1781563922000,-200.0,0.00036,120]
[425186726,1781563922000,-1000.0,0.00036191,120]
[425186756,1781563922000,-1551.71,0.00036287,5]
[425186729,1781563922000,-5222.93679359,0.000362,30]
[425186757,1781563922000,-1000.0,0.00036301,120]
[425186761,1781563922000,-1000.0,0.00036356,120]
[425186752,1781563922000,-1000.0,0.00036273,120]
[425186754,1781563922000,-215.6,0.00036275,120]
[425186755,1781563922000,-25000.0,0.00036279,10]
[425186760,1781563922000,-1000.0,0.00036328,120]
[425186762,1781563922000,-25000.0,0.00036364,10]
[425186763,1781563922000,-493333.82093598,0.00036378,2]
[425186773,1781563922000,-253.17,0.00036438,120]
[425186759,1781563922000,-25000.0,0.00036317,10]
[425186764,1781563922000,-1000.0,0.00036383,120]
[425186766,1781563922000,-299.39,0.000364,60]
[425186771,1781563922000,-151.48,0.00036434,14]
[425186765,1781563922000,-200.0,0.000364,14]
[425186768,1781563922000,-278.0,0.000364,120]
[425186767,1781563922000,-302632.0,0.000364,30]
[425186770,1781563922000,-151.48,0.00036434,14]
[425186772,1781563922000,-187.83,0.00036434,14]
[425186775,1781563922000,-1000.0,0.00036465,120]
[425186727,1781563922000,-5222.93679359,0.000362,30]
[425186769,1781563922000,-1000.0,0.0003641,120]
[425186758,1781563922000,-3722.04,0.00036304,10]
[425186774,1781563922000,-1000.0,0.00036438,120]
[425186751,1781563922000,-612.90789814,0.00036269,2]
[425186753,1781563922000,-2000.0,0.00036274,30]
[425186735,1781563922000,-1000.0,0.00036246,120]
[425186736,1781563922000,-158.24410207,0.00036251,2]
[425186738,1781563922000,-9594.0795,0.00036253,2]
[425186732,1781563922000,-3528.33422553,0.000362,30]
[425186733,1781563922000,-563.0,0.00036214,11]
[425186739,1781563922000,-2075.7737,0.00036253,2]
[425186731,1781563922000,-181.75902804,0.000362,30]
[425186730,1781563922000,-181.75902804,0.000362,30]
[425186737,1781563922000,-480.5191,0.00036253,2]
[425186734,1781563922000,-1000.0,0.00036219,120]
[425186740,1781563922000,-1734.68,0.00036261,2]
[425186741,1781563922000,-163.2936167,0.00036268,120]
[425186748,1781563922000,-256.7907144,0.00036268,120]
[425186745,1781563922000,-500.0,0.00036268,120]
[425186743,1781563922000,-500.0,0.00036268,120]
[425186746,1781563922000,-500.0,0.00036268,120]
[425186744,1781563922000,-500.0,0.00036268,120]
[425186750,1781563922000,-882.0,0.00036269,3]
[425186749,1781563922000,-218.25,0.00036268,120]
[425186742,1781563922000,-500.0,0.00036268,120]
[425186747,1781563922000,-500.0,0.00036268,120]
[425186799,1781563923000,-603.2478,0.00036623,30]
[425186805,1781563923000,-1000.0,0.000367,2]
[425186802,1781563923000,-5000.0,0.00036678,2]
[425186801,1781563923000,-1000.0,0.00036657,120]
[425186803,1781563923000,-1000.0,0.00036684,120]
[425186800,1781563923000,-1000.0,0.0003663,120]
[425186804,1781563923000,-1000.0,0.000367,2]
[425186798,1781563923000,-150.0,0.00036612,120]
[425186812,1781563923000,-545.38,0.00036738,3]
[425186807,1781563923000,-1000.0,0.00036712,120]
[425186809,1781563923000,-500.0,0.00036731,60]
[425186810,1781563923000,-500.0,0.00036731,60]
[425186811,1781563923000,-545.38,0.00036738,3]
[425186808,1781563923000,-500.0,0.00036731,60]
[425186814,1781563923000,-1000.0,0.00036739,120]
[425186813,1781563923000,-545.38,0.00036738,3]
[425186797,1781563923000,-1000.0,0.00036602,120]
[425186818,1781563923000,-1000.0,0.00036767,120]
[425186806,1781563923000,-150.0,0.00036711,120]
[425186792,1781563923000,-2507.23,0.00036567,10]
[425186783,1781563923000,-800.0,0.000365,7]
[425186791,1781563923000,-1000.0,0.00036547,120]
[425186815,1781563923000,-5000.0,0.00036741,10]
[425186777,1781563923000,-2507.24,0.00036485,10]
[425186781,1781563923000,-203.61637801,0.000365,120]
[425186780,1781563923000,-1000.0,0.00036493,120]
[425186782,1781563923000,-800.0,0.000365,7]
[425186784,1781563923000,-2580.69409746,0.000365,30]
[425186776,1781563923000,-312.77622,0.0003648,120]
[425186778,1781563923000,-518391.1674513,0.0003649,2]
[425186790,1781563923000,-5000.0,0.00036537,10]
[425186785,1781563923000,-800.0,0.000365,7]
[425186787,1781563923000,-800.0,0.000365,7]
[425186786,1781563923000,-800.0,0.000365,7]
[425186794,1781563923000,-705.17,0.00036579,7]
[425186795,1781563923000,-2032.29,0.00036595,10]
[425186789,1781563923000,-158.24410207,0.00036525,2]
[425186793,1781563923000,-1000.0,0.00036575,120]
[425186788,1781563923000,-1000.0,0.0003652,120]
[425186796,1781563923000,-1369.3583,0.000366,60]
[425186779,1781563923000,-571.813968,0.0003649,2]
[425186816,1781563923000,-563.0,0.00036748,12]
[425186840,1781563923000,-668.55710065,0.00036958,120]
[425186819,1781563923000,-307.56772,0.0003678,120]
[425186843,1781563923000,-800.0,0.00036986,120]
[425186847,1781563923000,-4500.0,0.00037,2]
[425186844,1781563923000,-365.0,0.00037,2]
[425186845,1781563923000,-65935.28365206,0.00037,9]
[425186846,1781563923000,-169.07192652,0.00037,2]
[425186848,1781563923000,-304.48563232,0.00037,120]
[425186850,1781563923000,-1947.6062375,0.00037,120]
[425186817,1781563923000,-150.0,0.00036756,2]
[425186842,1781563923000,-25000.0,0.00036984,10]
[425186849,1781563923000,-757.08467002,0.00037,120]
[425186853,1781563923000,-252.20518202,0.00037,60]
[425186855,1781563923000,-800.0,0.00037,7]
[425186856,1781563923000,-561.18959513,0.00037,20]
[425186854,1781563923000,-800.0,0.00037,7]
[425186857,1781563923000,-1000.0,0.00037,90]
[425186859,1781563923000,-163.0,0.00037,120]
[425186858,1781563923000,-10249.5068359,0.00037,14]
[425186860,1781563923000,-1182049.62610773,0.00037,7]
[425186852,1781563923000,-770373.40280704,0.00037,30]
[425186841,1781563923000,-2000.0,0.00036959,30]
[425186851,1781563923000,-500.0,0.00037,120]
[425186837,1781563923000,-5000.0,0.00036924,10]
[425186836,1781563923000,-1000.0,0.00036904,120]
[425186821,1781563923000,-1000.0,0.00036794,120]
[425186822,1781563923000,-158.24410207,0.00036799,2]
[425186820,1781563923000,-3688.49,0.00036786,10]
[425186825,1781563923000,-3073.596,0.000368,30]
[425186827,1781563923000,-1093.22073678,0.00036808,120]
[425186828,1781563923000,-1339.19540256,0.00036808,30]
[425186829,1781563923000,-1000.0,0.00036821,120]
[425186824,1781563923000,-3073.596,0.000368,30]
[425186823,1781563923000,-1644.26271703,0.000368,2]
[425186835,1781563923000,-278.0,0.000369,120]
[425186830,1781563923000,-1000.0,0.00036849,120]
[425186833,1781563923000,-202.0,0.0003689,30]
[425186832,1781563923000,-1000.0,0.00036876,120]
[425186831,1781563923000,-150.0,0.00036863,120]
[425186838,1781563923000,-1000.0,0.00036931,120]
[425186839,1781563923000,-2501.09,0.00036953,10]
[425186834,1781563923000,-278.0,0.000369,120]
[425186826,1781563923000,-3073.59,0.000368,30]
[425186873,1781563926000,-557.514244,0.00032877,7]
[425186874,1781563926000,-151.0,0.00032877,7]
[425186875,1781563926000,-3309.85366505,0.00037,7]
[425186877,1781563926000,-545.41116675,0.00032877,7]
[425186880,1781563926000,-2388.18745953,0.00032877,7]
[425186879,1781563926000,-575.04035047,0.00032877,7]
[425186881,1781563926000,-776.313137,0.00032877,7]
[425186872,1781563926000,-455.417108,0.00032877,7]
[425186876,1781563926000,-254.896815,0.00027397,2]
[425186868,1781563926000,-111.520504,0.00037,7]
[425186866,1781563926000,-279.325679,0.00032877,7]
[425186869,1781563926000,-314.319708,0.00032877,7]
[425186867,1781563926000,-679.74068,0.00032877,7]
[425186871,1781563926000,-2114.996621,0.00032877,7]
[425186862,1781563926000,-1754.60895748,0.00032877,7]
[425186863,1781563926000,-1208.61885252,0.00032877,7]
[425186864,1781563926000,-172.50185374,0.00037,7]
[425186865,1781563926000,-776.313137,0.00032877,7]
[425186861,1781563926000,-254.896815,0.00027397,2]
[425186882,1781563926000,-279.325679,0.00032877,7]
[425186870,1781563926000,-1013.250292,0.00032877,7]
[425186884,1781563926000,-254.896815,0.00027397,2]
[425186878,1781563926000,-245.31279425,0.00032877,7]
[425186886,1781563926000,-4826.689659,0.00032877,7]
[425186883,1781563926000,-290.27744961,0.00032877,7]
[425186904,1781563926000,-455.417108,0.00032877,7]
[425186903,1781563926000,-3128.246913,0.00032877,7]
[425186898,1781563926000,-19277.04447836,0.00037,7]
[425186901,1781563926000,-868.02305374,0.00034345,2]
[425186902,1781563926000,-1686.97694626,0.00037,20]
[425186900,1781563926000,-880.71967862,0.00037,20]
[425186899,1781563926000,-8965.39543045,0.00037,20]
[425186897,1781563926000,-314.319708,0.00032877,7]
[425186895,1781563926000,-679.74068,0.00032877,7]
[425186906,1781563926000,-790.723961,0.00032877,7]
[425186896,1781563926000,-279.325679,0.00032877,7]
[425186893,1781563926000,-4826.689659,0.00032877,7]
[425186888,1781563926000,-3128.246913,0.00032877,7]
[425186889,1781563926000,-455.417108,0.00032877,7]
[425186905,1781563926000,-557.514244,0.00032877,7]
[425186885,1781563926000,-389.46323039,0.00032877,7]
[425186891,1781563926000,-790.723961,0.00032877,7]
[425186892,1781563926000,-2963.22781,0.00032877,7]
[425186890,1781563926000,-263.892568,0.00032877,7]
[425186894,1781563926000,-776.313137,0.00032877,7]
[425186887,1781563926000,-314.319708,0.00032877,7]
[425186935,1781563927000,-745.12,0.00037078,2]
[425186931,1781563927000,-745.12,0.00037074,2]
[425186930,1781563927000,-745.12,0.00037074,2]
[425186932,1781563927000,-745.12,0.00037076,2]
[425186934,1781563927000,-745.12,0.00037078,2]
[425186933,1781563927000,-745.12,0.00037076,2]
[425186937,1781563927000,-223469.48993712,0.000371,2]
[425186942,1781563927000,-150.0,0.0003715,120]
[425186938,1781563927000,-1821.91,0.000371,120]
[425186939,1781563927000,-1253.96,0.000371,120]
[425186940,1781563927000,-243.40190196,0.0003712,60]
[425186945,1781563927000,-1000.0,0.00037178,2]
[425186941,1781563927000,-896.0,0.0003715,90]
[425186943,1781563927000,-1000.0,0.00037178,2]
[425186944,1781563927000,-1000.0,0.00037178,2]
[425186928,1781563927000,-745.12,0.00037072,2]
[425186936,1781563927000,-302.44391,0.0003708,120]
[425186926,1781563927000,-341.98375353,0.00037041,120]
[425186916,1781563927000,-800.0,0.00037,7]
[425186923,1781563927000,-150.0,0.0003701,120]
[425186907,1781563927000,-267.0,0.00034089,30]
[425186909,1781563927000,-250.0,0.00037,120]
[425186908,1781563927000,-1757.90794467,0.00037,20]
[425186910,1781563927000,-10000.0,0.00037,120]
[425186911,1781563927000,-2000.0,0.00037,20]
[425186913,1781563927000,-800.0,0.00037,7]
[425186912,1781563927000,-167.0,0.00037,120]
[425186915,1781563927000,-5000.0,0.00037,2]
[425186927,1781563927000,-745.12,0.0003707,2]
[425186914,1781563927000,-3581.60395676,0.00037,7]
[425186917,1781563927000,-2378.46,0.00037,30]
[425186918,1781563927000,-800.0,0.00037,7]
[425186920,1781563927000,-167.0,0.00037,120]
[425186919,1781563927000,-706.0,0.00037,30]
[425186925,1781563927000,-341.98375353,0.00037041,120]
[425186921,1781563927000,-771.05371444,0.00037,120]
[425186922,1781563927000,-1136.0,0.00037,7]
[425186924,1781563927000,-252.58142564,0.00037041,120]
[425186946,1781563927000,-1000.0,0.00037178,2]
[425186949,1781563927000,-1000.0,0.00037178,2]
[425186929,1781563927000,-158.24410207,0.00037073,2]
[425186950,1781563927000,-1000.0,0.00037178,2]
[425186970,1781563927000,-1000.0,0.00037178,2]
[425186978,1781563927000,-1000.0,0.00037178,2]
[425186971,1781563927000,-1000.0,0.00037178,2]
[425186974,1781563927000,-1000.0,0.00037178,2]
[425186973,1781563927000,-1000.0,0.00037178,2]
[425186972,1781563927000,-1000.0,0.00037178,2]
[425186976,1781563927000,-1000.0,0.00037178,2]
[425186975,1781563927000,-1000.0,0.00037178,2]
[425186977,1781563927000,-1000.0,0.00037178,2]
[425186980,1781563927000,-1000.0,0.00037178,2]
[425186982,1781563927000,-1000.0,0.00037178,2]
[425186988,1781563927000,-581.0,0.00037178,2]
[425186984,1781563927000,-1000.0,0.00037178,2]
[425186983,1781563927000,-1000.0,0.00037178,2]
[425186986,1781563927000,-1000.0,0.00037178,2]
[425186985,1781563927000,-1000.0,0.00037178,2]
[425186989,1781563927000,-1000.0,0.00037178,2]
[425186947,1781563927000,-1000.0,0.00037178,2]
[425186987,1781563927000,-1000.0,0.00037178,2]
[425186968,1781563927000,-1000.0,0.00037178,2]
[425186981,1781563927000,-1000.0,0.00037178,2]
[425186969,1781563927000,-1000.0,0.00037178,2]
[425186951,1781563927000,-1000.0,0.00037178,2]
[425186979,1781563927000,-1000.0,0.00037178,2]
[425186948,1781563927000,-1000.0,0.00037178,2]
[425186955,1781563927000,-1000.0,0.00037178,2]
[425186954,1781563927000,-1000.0,0.00037178,2]
[425186953,1781563927000,-1000.0,0.00037178,2]
[425186956,1781563927000,-1000.0,0.00037178,2]
[425186960,1781563927000,-1000.0,0.00037178,2]
[425186958,1781563927000,-1000.0,0.00037178,2]
[425186952,1781563927000,-1000.0,0.00037178,2]
[425186962,1781563927000,-1000.0,0.00037178,2]
[425186966,1781563927000,-1000.0,0.00037178,2]
[425186963,1781563927000,-1000.0,0.00037178,2]
[425186964,1781563927000,-1000.0,0.00037178,2]
[425186959,1781563927000,-1000.0,0.00037178,2]
[425186965,1781563927000,-1000.0,0.00037178,2]
[425186967,1781563927000,-1000.0,0.00037178,2]
[425186961,1781563927000,-1000.0,0.00037178,2]
[425186957,1781563927000,-1000.0,0.00037178,2]
[425187045,1781563928000,-189.12,0.00037482,120]
[425187034,1781563928000,-519.02839217,0.0003741,30]
[425187030,1781563928000,-309.649572,0.0003738,120]
[425187029,1781563928000,-150.0,0.00037379,120]